bitfinex/quotes_SOLUSD_20251009
["timestamp","ask_amount","ask_price","bid_price","bid_amount"]
[1759990640541,30.98,227.68,227.65,0.72]
[1759990642654,30.98,227.68,227.66,0.72]
[1759990642858,30.96,227.7,227.67,0.72]
[1759990643179,30.96,227.7,227.68,0.72]
[1759990643953,30.96,227.7,227.69,0.72]
[1759990644157,30.96,227.7,227.67,6.68579233]
[1759990644355,30.96,227.7,227.68,0.72]
[1759990644658,30.96,227.7,227.67,4.39215592]
[1759990644857,30.96,227.7,227.67,5.11215592]
[1759990646133,30.96,227.7,227.43,143.75323881]
[1759990646134,2.81363641,227.69,227.63,0.72]
[1759990646334,30.96,227.7,227.58,20.8]
[1759990646335,2.29363641,227.65,227.61,0.72]
[1759990647233,33.27363641,227.66,227.62,0.72]
[1759990647440,30.98,227.66,227.63,0.72]
[1759990647642,30.98,227.66,227.64,0.72]
[1759990649254,30.98,227.66,227.62,5.11328705]
[1759990649560,30.98,227.66,227.63,0.72]
[1759990652742,30.98,227.66,227.62,4.39328705]
[1759990652947,30.98,227.66,227.62,5.11328705]
[1759990653563,30.98,227.66,227.63,0.72]
[1759990653939,30.98,227.66,227.62,6.68692346]
[1759990654139,30.98,227.66,227.63,0.72]
[1759990654942,30.98,227.66,227.62,6.68692346]
[1759990655243,30.98,227.66,227.63,0.72]
[1759990655644,30.96,227.68,227.63,0.72]
[1759990656057,30.96,227.68,227.64,4.39290107]
[1759990656742,33.25363641,227.68,227.64,4.39290107]
[1759990656965,33.25363641,227.68,227.63,0.72]
[1759990657177,33.25363641,227.68,227.61,4.39339768]
[1759990657178,2.29363641,227.67,227.61,4.39339768]
[1759990657348,2.81363641,227.67,227.61,6.68703409]
[1759990657543,2.29363641,227.66,227.61,4.39339768]
[1759990657742,2.29363641,227.66,227.61,5.06339768]
[1759990658246,33.77363641,227.65,227.58,0.67]
[1759990658452,2.29363641,227.63,227.58,0.67]
[1759990658653,2.29363641,227.63,227.59,0.67]
[1759990658855,2.29363641,227.64,227.59,0.67]
[1759990659072,31.48,227.65,227.59,0.67]
[1759990659073,33.77363641,227.65,227.59,0.67]
[1759990659767,33.77363641,227.65,227.6,4.39367311]
[1759990659973,33.77363641,227.65,227.6,5.06367311]
[1759990660945,33.77363641,227.65,227.58,2.96363641]
[1759990661474,33.77363641,227.65,227.59,0.67]
[1759990662066,33.77363641,227.65,227.6,4.39367311]
[1759990662268,33.77363641,227.65,227.6,5.06367311]
[1759990662767,37.64636343,227.65,227.59,2.29363641]
[1759990662970,0.52,227.64,227.59,2.29363641]
[1759990663272,0.52,227.64,227.59,2.96363641]
[1759990663452,30.96,227.65,227.6,0.7]
[1759990663661,31.48,227.65,227.6,2.99363641]
[1759990663847,31.48,227.65,227.48,22.2936364]
[1759990663848,0.52,227.64,227.52,0.7]
[1759990664048,2.29363641,227.55,227.48,0.7]
[1759990664250,31.48,227.56,227.48,0.7]
[1759990664746,2.29363641,227.53,227.48,0.7]
[1759990664949,2.29363641,227.53,227.46,4.39635607]
[1759990664950,2.29363641,227.51,227.46,4.39635607]
[1759990665144,2.29363641,227.51,227.37,2.29363641]
[1759990665145,23.09363641,227.47,227.34,0.1]
[1759990665455,2.29363641,227.45,227.41,0.7]
[1759990665651,2.29363641,227.46,227.41,5.09729589]
[1759990665850,20.8,227.47,227.43,0.8]
[1759990665851,23.09363641,227.47,227.43,0.8]
[1759990666277,20.8,227.47,227.43,0.8]
[1759990666451,23.09363641,227.47,227.43,0.8]
[1759990666649,23.09363641,227.47,227.43,5.19691766]
[1759990667252,2.29363641,227.47,227.43,5.19691766]
[1759990667665,31.0,227.48,227.44,2.99363641]
[1759990667860,31.0,227.48,227.45,0.7]
[1759990669166,2.29363641,227.53,227.46,2.99363641]
[1759990669468,31.0,227.52,227.47,0.7]
[1759990670166,10.98515667,227.58,227.47,0.7]
[1759990670167,0.52,227.56,227.48,2.99363641]
[1759990670373,0.52,227.56,227.47,4.39618411]
[1759990670374,31.0,227.55,227.49,2.99363641]
[1759990670547,31.0,227.55,227.5,0.7]
[1759990671380,33.81363641,227.55,227.5,5.09557101]
[1759990671570,33.81363641,227.55,227.48,6.68944743]
[1759990671777,33.81363641,227.55,227.48,7.38944743]
[1759990676074,33.81363641,227.55,227.48,5.09581102]
[1759990676447,2.29363641,227.54,227.48,5.09581102]
[1759990677057,2.29363641,227.54,227.48,4.39581102]
[1759990677255,2.29363641,227.54,227.5,4.39560439]
[1759990678272,2.29363641,227.54,227.48,4.39599085]
[1759990678465,2.29363641,227.54,227.49,0.7]
[1759990678668,2.29363641,227.54,227.5,0.7]
[1759990679776,2.29363641,227.54,227.51,0.7]
[1759990679979,2.29363641,227.54,227.49,0.7]
[1759990680182,2.29363641,227.54,227.5,0.7]
[1759990680480,2.29363641,227.54,227.5,5.09554192]
[1759990680982,2.29363641,227.54,227.5,0.7]
[1759990681357,2.81363641,227.54,227.49,4.39571414]
[1759990681676,2.81363641,227.54,227.49,5.09571414]
[1759990682170,2.29363641,227.54,227.49,5.09571414]
[1759990683458,2.29363641,227.54,227.5,0.7]
[1759990683858,168.57363641,227.55,227.5,0.7]
[1759990684477,165.76,227.55,227.51,0.7]
[1759990684694,134.8,227.55,227.52,2.29363641]
[1759990684872,135.32,227.55,227.49,2.99363641]
[1759990685061,135.32,227.55,227.5,0.7]
[1759990685062,134.8,227.55,227.5,0.7]
[1759990685386,134.8,227.55,227.51,0.7]
[1759990685562,134.8,227.55,227.45,20.8]
[1759990685563,2.29363641,227.54,227.45,20.8]
[1759990685762,2.29363641,227.54,227.46,5.09637738]
[1759990685963,1.4695301,227.54,227.48,1.4695301]
[1759990686164,1.4695301,227.54,227.49,0.67]
[1759990686388,1.4695301,227.54,227.5,0.67]
[1759990686682,167.2295301,227.55,227.5,0.67]
[1759990686870,167.2295301,227.55,227.51,0.67]
[1759990687383,167.2295301,227.55,227.51,5.06523963]
[1759990687756,165.76,227.55,227.51,5.06523963]
[1759990688277,134.8,227.55,227.52,0.67]
[1759990688460,134.8,227.55,227.52,2.1395301]
[1759990688657,134.8,227.55,227.53,1.4695301]
[1759990688863,136.2695301,227.55,227.51,0.67]
[1759990689067,136.2695301,227.55,227.48,10.98963752]
[1759990689068,1.4695301,227.54,227.49,5.06579761]
[1759990689268,1.4695301,227.54,227.5,0.67]
[1759990689466,134.8,227.55,227.51,15.38393916]
[1759990689690,1.4695301,227.6,227.52,2.1395301]
[1759990689894,1.4695301,227.6,227.53,0.67]
[1759990690680,1.4695301,227.6,227.54,4.39483167]
[1759990690973,1.4695301,227.6,227.55,0.67]
[1759990691165,134.8,227.61,227.55,0.67]
[1759990692093,136.2695301,227.61,227.55,0.67]
[1759990692795,136.2695301,227.61,227.56,4.39444542]
[1759990692998,136.7895301,227.61,227.56,4.39444542]
[1759990693494,136.7895301,227.61,227.56,5.06444542]
[1759990693700,1.4695301,227.58,227.5,21.47]
[1759990693875,0.52,227.6,227.53,0.67]
[1759990694074,1.4695301,227.58,227.53,0.67]
[1759990694277,1.4695301,227.58,227.54,0.67]
[1759990694879,1.4695301,227.58,227.55,4.39463854]
[1759990696094,1.4695301,227.56,227.48,16.05562785]
[1759990696292,1.4695301,227.52,227.48,16.05562785]
[1759990696593,1.4695301,227.49,227.48,4.39599085]
[1759990696978,1.4695301,227.49,227.47,4.39618411]
[1759990697877,1.4695301,227.49,227.45,10.99112513]
[1759990698071,1.4695301,227.5,227.46,0.67]
[1759990698273,1.4695301,227.53,227.47,0.67]
[1759990698880,1.4695301,227.53,227.47,2.1395301]
[1759990699079,1.4695301,227.53,227.47,0.67]
[1759990700295,1.4695301,227.53,227.48,4.39599085]
[1759990700503,1.4695301,227.53,227.48,5.06599085]
[1759990701683,1.4695301,227.52,227.48,0.67]
[1759990701993,1.4695301,227.53,227.48,0.67]
[1759990702196,20.8,227.54,227.49,0.67]
[1759990702406,22.2695301,227.54,227.49,0.67]
[1759990702590,22.2695301,227.54,227.5,0.67]
[1759990704803,136.2695301,227.57,227.51,0.67]
[1759990705004,134.8,227.56,227.51,2.1395301]
[1759990705184,136.7895301,227.56,227.5,17.52406758]
[1759990706599,136.2695301,227.56,227.5,17.52406758]
[1759990707506,1.4695301,227.54,227.5,4.3955265]
[1759990707710,139.194464,227.56,227.45,1.4695301]
[1759990707711,1.4695301,227.51,227.45,1.4695301]
[1759990707906,1.4695301,227.48,227.44,11.66159733]
[1759990708109,1.4695301,227.48,227.45,4.39657067]
[1759990708604,0.52,227.51,227.45,4.39657067]
[1759990708812,1.4695301,227.5,227.45,5.06657067]
[1759990709106,1.4695301,227.5,227.46,0.67]
[1759990709913,1.4695301,227.5,227.47,4.39618411]
[1759990710211,1.4695301,227.5,227.47,5.06618411]
[1759990710508,20.8,227.49,227.47,0.67]
[1759990711522,22.2695301,227.5,227.44,0.67]
[1759990711993,1.4695301,227.49,227.44,5.06665632]
[1759990712420,1.4695301,227.48,227.43,0.1]
[1759990712712,1.4695301,227.46,227.43,0.1]
[1759990713089,0.52,227.47,227.43,0.1]
[1759990713291,1.4695301,227.46,227.43,0.1]
[1759990718416,1.4695301,227.47,227.43,0.76]
[1759990719514,1.4695301,227.47,227.43,0.1]
[1759990720122,1.9895301,227.47,227.43,0.1]
[1759990721027,1.4695301,227.47,227.43,0.1]
[1759990721224,1.9895301,227.47,227.43,0.1]
[1759990721528,134.8,227.48,227.44,0.66]
[1759990721817,20.8,227.5,227.45,1.4695301]
[1759990721995,5.86476743,227.52,227.46,0.66]
[1759990723016,5.86476743,227.52,227.47,4.39618411]
[1759990723311,1.9895301,227.51,227.45,4.39639116]
[1759990724422,1.4695301,227.51,227.46,5.06619965]
[1759990724602,1.4695301,227.51,227.47,0.67]
[1759990726222,1.4695301,227.5,227.47,0.67]
[1759990727622,1.4695301,227.5,227.46,4.39619965]
[1759990727917,1.4695301,227.48,227.44,5.06676398]
[1759990731503,4.91546524,227.5,227.44,5.06676398]
[1759990731504,1.4695301,227.49,227.44,5.06676398]
[1759990731703,1.4695301,227.49,227.45,5.06643988]
[1759990732022,1.4695301,227.49,227.45,4.39643988]
[1759990732207,1.9895301,227.49,227.45,4.39643988]
[1759990733623,1.4695301,227.47,227.43,5.16677055]
[1759990733829,1.4695301,227.47,227.44,0.67]
[1759990734210,1.4695301,227.47,227.45,0.67]
[1759990734526,136.2695301,227.48,227.45,0.67]
[1759990735132,134.8,227.48,227.46,0.67]
[1759990737530,134.8,227.48,227.43,1.5695301]
[1759990737531,1.9895301,227.47,227.43,0.1]
[1759990737731,22.2695301,227.44,227.43,0.1]
[1759990738024,53.2495301,227.44,227.43,0.1]
[1759990738232,53.7695301,227.44,227.43,0.1]
[1759990738429,58.16629408,227.44,227.43,0.1]
[1759990738628,69.04276929,227.44,227.43,0.1]
[1759990738931,58.16629408,227.44,227.43,0.1]
[1759990739506,21.32,227.44,227.43,0.1]
[1759990739709,30.98,227.44,227.43,0.1]
[1759990740833,32.4495301,227.44,227.43,0.1]
[1759990741145,20.8,227.41,227.39,0.1]
[1759990741425,32.4495301,227.4,227.39,0.1]
[1759990741633,32.8695301,227.4,227.39,0.1]
[1759990741832,34.63075238,227.4,227.39,0.1]
[1759990742345,31.67647521,227.38,227.37,0.1]
[1759990742508,18.21345958,227.38,227.37,0.1]
[1759990742707,18.63345958,227.38,227.37,0.1]
[1759990742907,39.43345958,227.38,227.37,0.1]
[1759990743128,18.63345958,227.38,227.37,0.1]
[1759990743338,43.84204988,227.38,227.37,0.1]
[1759990743542,23.04204988,227.38,227.37,0.1]
[1759990744513,37.96392948,227.38,227.27,0.77]
[1759990744725,33.14600531,227.35,227.27,0.1]
[1759990745211,33.56600531,227.35,227.27,0.1]
[1759990745414,64.60600531,227.35,227.27,0.1]
[1759990746124,69.00450981,227.35,227.27,0.1]
[1759990747833,67.53497971,227.35,227.27,0.1]
[1759990748023,69.83625021,227.35,227.27,0.1]
[1759990748922,71.59824831,227.35,227.27,0.1]
[1759990749333,71.17824831,227.35,227.3,0.69]
[1759990749839,69.29697781,227.35,227.28,0.79]
[1759990750017,71.59824831,227.35,227.28,0.79]
[1759990750217,40.55824831,227.35,227.28,0.79]
[1759990750426,71.57824831,227.35,227.28,0.79]
[1759990751319,149.97517319,227.34,227.28,0.79]
[1759990751939,149.97517319,227.34,227.29,0.69]
[1759990753132,151.73709368,227.34,227.29,0.69]
[1759990756630,182.73709368,227.34,227.29,0.69]
[1759990757859,151.73709368,227.34,227.29,0.69]
[1759990758149,182.73709368,227.34,227.29,0.69]
[1759990758346,182.73709368,227.34,227.3,0.69]
[1759990760546,134.7,227.34,227.33,0.79]
[1759990760749,165.7,227.34,227.33,0.79]
[1759990766751,165.7,227.34,227.33,3.0912705]
[1759990766952,19.99999999,227.45,227.33,7.49016197]
[1759990766953,4.39940605,227.4,227.33,7.49016197]
[1759990767143,0.66,227.46,227.39,2.3012705]
[1759990767461,20.8,227.42,227.38,0.69]
[1759990767636,20.8,227.42,227.37,2.3012705]
[1759990767637,31.0,227.41,227.39,0.69]
[1759990768166,0.66,227.4,227.33,0.1]
[1759990768390,20.8,227.36,227.33,0.1]
[1759990768668,20.8,227.36,227.33,0.79]
[1759990768669,31.0,227.35,227.33,0.79]
[1759990769045,2.4012705,227.34,227.33,0.1]
[1759990769362,33.4212705,227.34,227.33,0.1]
[1759990771276,44.95774571,227.34,227.33,0.1]
[1759990771439,47.25901621,227.34,227.33,0.1]
[1759990771951,46.59901621,227.34,227.33,0.1]
[1759990772348,44.29774571,227.34,227.33,0.1]
[1759990772553,46.59901621,227.34,227.33,0.1]
[1759990773065,33.4212705,227.34,227.33,0.79]
[1759990773359,31.02,227.34,227.33,0.79]
[1759990774045,31.02,227.34,227.33,0.1]
[1759990774249,35.41869798,227.34,227.33,0.1]
[1759990775552,36.07869798,227.34,227.33,0.1]
[1759990775957,35.41869798,227.34,227.33,0.1]
[1759990777239,37.18038567,227.34,227.33,0.1]
[1759990779060,39.48165617,227.34,227.33,0.1]
[1759990779955,40.19165617,227.34,227.33,0.1]
[1759990780652,43.11721388,227.34,227.33,0.1]
[1759990780860,53.99368909,227.34,227.33,0.1]
[1759990781946,53.28368909,227.34,227.33,0.1]
[1759990782958,42.40721388,227.34,227.33,0.1]
[1759990783163,40.10594338,227.34,227.33,0.1]
[1759990784272,42.40721388,227.34,227.33,0.1]
[1759990784475,40.77594338,227.34,227.33,0.1]
[1759990784645,53.95368909,227.34,227.33,0.1]
[1759990788063,4.6872454,227.34,227.33,0.8]
[1759990788275,35.41869798,227.34,227.33,0.8]
[1759990790468,35.41869798,227.34,227.33,0.1]
[1759990790647,35.41869798,227.34,227.33,0.8]
[1759990794864,35.41869798,227.34,227.3,2.3012705]
[1759990794865,20.8,227.31,227.28,0.1]
[1759990795069,31.0,227.3,227.28,0.1]
[1759990795571,31.0,227.3,227.29,0.7]
[1759990796774,31.0,227.3,227.29,3.0012705]
[1759990797148,4.39889392,227.33,227.29,3.0012705]
[1759990797350,31.02,227.32,227.3,0.7]
[1759990798057,31.02,227.32,227.29,2.3012705]
[1759990798271,31.02,227.32,227.31,0.7]
[1759990798468,35.41914293,227.32,227.28,2.4012705]
[1759990798667,36.08914293,227.32,227.28,0.1]
[1759990798865,38.39041343,227.32,227.28,0.1]
[1759990799067,38.39041343,227.32,227.29,0.7]
[1759990799068,31.02,227.32,227.29,0.7]
[1759990799776,31.02,227.32,227.28,4.49985764]
[1759990799977,31.02,227.32,227.3,3.0012705]
[1759990800152,31.02,227.32,227.31,0.7]
[1759990800796,31.02,227.32,227.28,4.49985764]
[1759990800797,38.39035549,227.32,227.28,0.1]
[1759990800972,23.1012705,227.29,227.28,0.1]
[1759990801163,51.84,227.29,227.28,0.1]
[1759990801473,54.1412705,227.29,227.28,0.1]
[1759990802380,54.8112705,227.29,227.28,0.1]
[1759990802567,59.21093612,227.29,227.28,0.1]
[1759990803480,70.08741133,227.29,227.28,0.1]
[1759990803690,73.02379009,227.29,227.28,1e-08]
[1759990803860,73.02379009,227.29,227.27,0.1]
[1759990803861,10.87647521,227.28,227.27,1e-08]
[1759990804199,20.8,227.25,227.11,0.7]
[1759990804359,2.3012705,227.15,227.1,0.1]
[1759990804561,35.54274799,227.14,227.1,0.1]
[1759990804761,33.4412705,227.13,227.1,0.8]
[1759990805258,2.3012705,227.12,227.1,0.1]
[1759990805477,4.40274799,227.14,227.1,0.1]
[1759990805478,31.14,227.11,227.1,0.1]
[1759990806987,20.8,227.13,227.1,0.82]
[1759990807165,31.12,227.12,227.1,0.1]
[1759990807562,31.12,227.12,227.11,0.72]
[1759990807777,31.12,227.12,227.1,0.1]
[1759990807981,31.12,227.12,227.1,0.82]
[1759990812485,31.12,227.12,227.1,0.1]
[1759990812982,31.12,227.12,227.11,0.72]
[1759990813182,31.12,227.12,227.1,0.1]
[1759990814175,31.12,227.12,227.1,0.82]
[1759990814576,20.8,227.13,227.1,0.1]
[1759990814770,22.2749421,227.13,227.1,0.1]
[1759990814977,31.1,227.12,227.1,0.1]
[1759990815287,31.1,227.11,227.1,0.1]
[1759990815487,31.08,227.11,227.1,0.1]
[1759990816276,32.5549421,227.11,227.1,0.1]
[1759990816585,33.2249421,227.11,227.1,0.1]
[1759990817274,37.62809475,227.11,227.1,0.1]
[1759990817587,36.95809475,227.11,227.1,0.1]
[1759990818595,37.62809475,227.11,227.1,0.1]
[1759990820491,15.94962786,227.11,227.1,0.1]
[1759990820796,48.50456996,227.11,227.1,0.1]
[1759990822572,47.02962786,227.11,227.1,0.1]
[1759990822881,48.50456996,227.11,227.1,0.1]
[1759990823591,20.8,227.07,227.06,0.1]
[1759990823777,57.7588704,227.07,227.06,0.1]
[1759990823977,58.4388704,227.07,227.06,0.1]
[1759990824288,75.21511401,227.07,227.06,0.1]
[1759990824671,75.21511401,227.07,227.06,1e-08]
[1759990824870,75.21511401,227.07,226.95,0.69]
[1759990824871,10.87647521,227.02,226.95,0.69]
[1759990825093,1.4749421,226.97,226.95,0.69]
[1759990825293,31.12,226.96,226.95,0.69]
[1759990825675,32.5949421,226.96,226.95,0.69]
[1759990826701,31.12,226.96,226.95,0.69]
[1759990827081,31.1,226.96,226.95,0.69]
[1759990828599,32.5749421,226.96,226.95,0.69]
[1759990828989,31.1,226.96,226.93,0.69]
[1759990829192,32.5749421,226.96,226.94,0.69]
[1759990829392,32.5749421,226.96,226.95,0.69]
[1759990829787,31.1,226.96,226.95,0.69]
[1759990829992,32.5749421,226.96,226.95,0.69]
[1759990830185,32.5749421,226.96,226.88,11.01889318]
[1759990830186,32.5749421,226.96,226.9,4.40722785]
[1759990830376,35.50607333,226.96,226.92,0.69]
[1759990830583,1.4749421,226.95,226.92,0.69]
[1759990830779,31.1,226.94,226.88,4.40743729]
[1759990830983,20.8,226.98,226.93,0.69]
[1759990831187,31.08,226.97,226.93,0.69]
[1759990831484,1.4749421,226.95,226.93,0.69]
[1759990831702,31.08,226.94,226.88,5.09743729]
[1759990832000,32.5549421,226.94,226.89,5.09741288]
[1759990832199,32.5549421,226.94,226.9,0.69]
[1759990832402,1.4749421,226.91,226.9,0.69]
[1759990832703,31.08,226.91,226.9,0.69]
[1759990833005,32.5549421,226.91,226.9,0.69]
[1759990833204,31.08,226.91,226.9,0.69]
[1759990833390,32.5549421,226.91,226.9,0.69]
[1759990833578,32.5549421,226.91,226.87,0.1]
[1759990833579,31.08,226.91,226.87,0.1]
[1759990833783,22.23448208,227.14,226.87,0.1]
[1759990833784,20.8,226.98,226.89,4.40742209]
[1759990834003,20.8,226.94,226.9,0.69]
[1759990834209,31.08,226.93,226.9,0.69]
[1759990834511,31.08,226.93,226.91,0.69]
[1759990834824,31.08,226.93,226.92,0.69]
[1759990836298,20.8,226.94,226.92,0.69]
[1759990836601,31.08,226.93,226.92,0.69]
[1759990836802,10.87647521,227.01,226.93,0.71]
[1759990837007,31.08,227.0,226.93,0.71]
[1759990837187,1.4749421,226.98,226.93,0.71]
[1759990837387,31.08,226.97,226.93,0.71]
[1759990837800,1.4749421,226.98,226.94,0.71]
[1759990837997,22.02217923,227.19,226.94,0.71]
[1759990837998,0.7,227.05,226.95,0.71]
[1759990838188,1.4749421,227.02,226.95,2.1849421]
[1759990838389,30.74,227.04,226.92,4.40676861]
[1759990838390,1.4749421,226.96,226.92,5.11676861]
[1759990838698,1.4749421,226.94,226.93,0.71]
[1759990838893,31.08,226.97,226.93,0.71]
[1759990838894,1.4749421,226.95,226.93,0.71]
[1759990839304,1.4749421,226.95,226.94,0.71]
[1759990840391,1.4749421,226.95,226.91,0.71]
[1759990840584,22.72,226.97,226.92,0.71]
[1759990840811,1.4749421,226.94,226.93,0.71]
[1759990841200,1.4749421,226.95,226.93,0.71]
[1759990841404,1.4749421,226.96,226.93,0.71]
[1759990843093,22.72,226.97,226.93,0.71]
[1759990843094,1.4749421,226.95,226.93,0.71]
[1759990843911,1.4749421,226.96,226.93,0.68]
[1759990845091,1.4749421,226.96,226.89,15.42584841]
[1759990845292,1.4749421,226.96,226.94,0.68]
[1759990845834,31.08,227.0,226.95,0.68]
[1759990846110,31.79,227.0,226.93,0.68]
[1759990846410,1.4749421,226.98,226.94,0.68]
[1759990846716,1.4749421,226.99,226.95,0.68]
[1759990847103,1.4749421,226.99,226.96,4.40606274]
[1759990847408,32.5549421,227.0,226.97,0.68]
[1759990847606,31.08,227.0,226.97,0.68]
[1759990847808,31.08,227.0,226.98,0.68]
[1759990848317,32.5549421,227.0,226.96,5.08606274]
[1759990848622,32.5549421,227.0,226.97,0.68]
[1759990849291,32.5549421,227.0,226.98,0.68]
[1759990849696,32.5549421,227.0,226.99,0.68]
[1759990849697,31.08,227.0,226.99,0.68]
[1759990849897,0.71,227.1,226.99,2.1549421]
[1759990850096,24.28,227.09,227.0,2.1549421]
[1759990850307,1.4749421,227.07,227.01,0.68]
[1759990850512,1.4749421,227.02,226.94,4.40645104]
[1759990850696,1.4749421,226.97,226.95,0.68]
[1759990850905,1.4749421,226.97,226.94,4.40645104]
[1759990851105,1.4749421,226.96,226.92,5.08668825]
[1759990851413,1.4749421,226.96,226.93,0.68]
[1759990851613,1.4749421,226.96,226.94,0.68]
[1759990852409,1.4749421,226.96,226.9,0.68]
[1759990852607,1.4749421,226.94,226.9,0.68]
[1759990852811,1.4749421,226.94,226.91,0.68]
[1759990853014,1.4749421,226.94,226.92,0.68]
[1759990853827,1.4749421,226.94,226.92,5.08680061]
[1759990854204,20.8,226.98,226.93,0.68]
[1759990854410,1.4749421,226.97,226.93,0.68]
[1759990854907,1.4749421,226.99,226.93,0.68]
[1759990855420,1.4749421,226.99,226.93,2.1549421]
[1759990855617,1.4749421,226.99,226.94,0.68]
[1759990856000,1.4749421,226.99,226.95,4.40625688]
[1759990856213,1.4749421,226.99,226.96,0.68]
[1759990856431,1.4749421,227.01,226.96,0.68]
[1759990856605,32.5949421,227.03,226.96,0.68]
[1759990857733,32.5949421,227.03,226.97,4.40586861]
[1759990857933,32.5949421,227.03,226.97,5.08586861]
[1759990859030,31.12,227.03,226.97,5.08586861]
[1759990859216,1.4749421,227.02,226.97,5.08586861]
[1759990859411,1.4749421,227.02,226.98,0.68]
[1759990859919,1.4749421,227.02,226.99,4.40548041]
[1759990860306,1.4749421,227.02,226.98,0.68]
[1759990860918,1.4749421,227.02,226.94,12.49095848]
[1759990860919,1.4749421,227.02,226.96,0.68]
[1759990861308,1.4749421,227.01,226.96,0.68]
[1759990861511,1.4749421,227.01,226.97,0.68]
[1759990862211,1.4749421,227.02,226.98,0.68]
[1759990863213,5.1145113,227.04,226.98,5.08551581]
[1759990863418,1.4749421,227.01,226.98,4.40551581]
[1759990863946,1.4749421,226.99,226.96,4.40592603]
[1759990864725,1.4749421,226.98,226.94,4.40645104]
[1759990864933,1.4749421,226.98,226.94,5.08645104]
[1759990866221,0.71,226.99,226.94,5.08645104]
[1759990866533,1.4749421,227.02,226.95,2.1949421]
[1759990866740,1.4749421,227.02,226.96,0.72]
[1759990867136,134.8,227.03,226.96,0.72]
[1759990867326,134.8,227.03,226.96,2.1949421]
[1759990867720,136.2749421,227.03,226.97,4.40586861]
[1759990868641,136.2749421,227.03,226.97,5.12586861]
[1759990869640,136.2749421,227.03,226.97,15.42054015]
[1759990869832,134.8,227.03,226.98,0.72]
[1759990870224,135.46,227.03,226.98,0.72]
[1759990871136,135.46,227.03,226.99,4.40548041]
[1759990871340,0.66,227.02,226.99,4.40548041]
[1759990871547,134.8,227.03,226.99,4.40548041]
[1759990872338,134.8,227.03,226.99,5.12548041]
[1759990872649,134.8,227.03,227.0,3.02656556]
[1759990872844,134.8,227.03,227.01,0.72]
[1759990873155,134.8,227.03,227.02,4.40489824]
[1759990874141,134.8,227.03,227.02,5.12489824]
[1759990874341,134.8,227.03,227.02,7.4314638]
[1759990875440,134.8,227.03,227.02,5.12489824]
[1759990877048,166.52,227.03,226.95,0.72]
[1759990877250,166.52,227.03,226.96,4.40606274]
[1759990877251,2.30656556,227.0,226.96,4.40606274]
[1759990877426,2.30656556,227.0,226.96,5.12606274]
[1759990878549,2.30656556,227.01,226.96,5.12606274]
[1759990879044,2.30656556,226.97,226.92,4.40683941]
[1759990879240,2.30656556,226.97,226.92,5.12683941]
[1759990879241,33.36656556,226.97,226.92,5.12683941]
[1759990879726,2.30656556,226.96,226.92,4.40683941]
[1759990879932,2.96656556,226.95,226.87,0.1]
[1759990880149,31.06,226.94,226.87,0.1]
[1759990880354,2.30656556,226.91,226.87,0.1]
[1759990881237,2.30656556,226.91,226.87,4.50776947]
[1759990881434,33.50656556,226.91,226.87,4.50776947]
[1759990882259,34.16656556,226.91,226.87,4.50776947]
[1759990882667,2.30656556,226.89,226.87,0.1]
[1759990882827,2.30656556,226.88,226.87,0.1]
[1759990883027,2.96656556,226.88,226.87,0.1]
[1759990883390,31.2,226.91,226.87,4.50769632]
[1759990883529,31.2,226.91,226.87,17.83378848]
[1759990883853,31.2,226.91,226.87,4.50769632]